Cogmind - Beta 9.6 @@@ ROGUE MODE // 2020.07.31 @ 03:28:39 // Winter2019/RPGLIKE Player: FontPeg Result: Destroyed by Y-45 Defender with Heavy Assault Rifle Performance ------------- Evolutions (2) 1000 Regions Visited (3) 600 Robots Destroyed (49) 245 Value Destroyed (1459) 1459 Prototype IDs (4) 80 Alien Tech Used (0) 0 Bonus (22) 22 TOTAL SCORE: 3406 Bonus ------- High Alert Combat Kills 22 Cogmind --------- Core Integrity 0/850 Matter 140/500 Energy 222/240 System Corruption 0% Temperature Cool (308) Movement Rolling (80) Location -8/Materials Parts ------- > --- POWER (1) -------- Nuclear Core > --- PROPULSION (2) --- Wheel Wheel > --- UTILITY (3) ------ Signal Interpreter Improved Targeting Computer Hacking Suite > --- WEAPON (2) ------- Flak Cannon Heavy Missile Launcher > --- INVENTORY (3) ---- Protomatter-26 Improved Assault Rifle Flak Cannon Peak State ------------ > --- POWER ------------ Nuclear Core > --- PROPULSION ------- Wheel Wheel > --- UTILITY ---------- Signal Interpreter Improved Targeting Computer Hacking Suite > --- WEAPON ----------- Flak Cannon Heavy Missile Launcher > --- INVENTORY -------- Protomatter Improved Assault Rifle Flak Cannon [Rating: 18] Favorites ----------- Power Light Ion Engine Engine Light Ion Engine Power Core Nuclear Core Propulsion Wheel Treads Light Treads Wheel Wheel Utility Improved Targeting Computer Device Improved Sensor Array Processor Improved Targeting Computer Hackware Hacking Suite Protection Light Armor Plating Weapon Flak Cannon Energy Gun Medium Laser Ballistic Gun Improved Assault Rifle Ballistic Cannon Flak Cannon Launcher Heavy Missile Launcher Build | -11 -10 -9 -8 ------- Run | Scr Mat Mat Mat Slots Evolved 4 | 3 . 1 . Power . | . . . . Propulsion 1 | 1 . . . Utility 2 | 1 . 1 . Weapon 1 | 1 . . . Parts Attached 21 | 6 4 8 3 Power 2 | 1 . . 1 Engine 1 | 1 . . . Core 1 | . . . 1 Reactor . | . . . . Propulsion 3 | 3 . . . Treads 1 | 1 . . . Leg . | . . . . Wheel 2 | 2 . . . Hover . | . . . . Flight . | . . . . Utility 8 | . 2 5 1 Device 1 | . . 1 . Storage . | . . . . Processor 4 | . 1 3 . Hackware 1 | . . . 1 Protection 2 | . 1 1 . Artifact . | . . . . Weapon 8 | 2 2 3 1 Energy Gun 1 | 1 . . . Energy Cannon . | . . . . Ballistic Gun 5 | 1 2 2 . Ballistic Cannon 1 | . . 1 . Launcher 1 | . . . 1 Special Weapon . | . . . . Impact Weapon . | . . . . Slashing Weapon . | . . . . Piercing Weapon . | . . . . Special Melee Weapon . | . . . . Unidentified Prototypes 1 | . . 1 . Parts Lost . | . . . . Power . | . . . . Propulsion . | . . . . Utility . | . . . . Weapon . | . . . . Highest Loss Streak . | . . . . Average Slot Usage (%) 98 | . 89 99 100 Engine 10 | . 14 12 1 Core 2 | . . . 11 Wheel 25 | . 28 25 25 Device 6 | . . 8 7 Processor 20 | . 6 22 25 Protection 4 | . 11 4 . Energy Gun 1 | . 9 . . Ballistic Gun 12 | . 18 12 9 Ballistic Cannon 10 | . . 12 12 Naked Turns . | . . . . Heaviest Build 20 | 7 10 15 20 Greatest Support 20 | 20 20 20 20 Greatest Overweight (x) . | . . . . Average Overweight (x) . | . . . . Largest Inventory Capacity 3 | . . 3 3 Average Capacity 2 | . . 2 3 Most Carried 3 | . . 3 3 Average Carried 2 | . . 2 3 Final Capacity 3 | . . 3 3 Final Carried 3 | . . 3 3 Class Distribution -------------------- 92% | Mutant 7% | Hacker-Mutant Dominant Class ---------------- Mutant | -10/Materials Mutant | -9/Materials Mutant | -8/Materials Resources | -11 -10 -9 -8 ----------- Run | Scr Mat Mat Mat Matter Collected 1186 | 253 210 582 141 Remotely . | . . . . Salvage Created 1208 | . 73 641 494 Parts 99 | . 13 61 25 Haulers Intercepted 2 | . . 2 . Recyclers Shooed . | . . . . Parts Field Recycled . | . . . . Retrieved Matter . | . . . . Parts Self-Destructed . | . . . . Prevented . | . . . . Kills | -11 -10 -9 -8 ------- Run | Scr Mat Mat Mat Combat Hostiles Destroyed 42 | . 5 25 12 Guns 19 | . 5 14 . Cannons 16 | . . 11 5 AOE 7 | . . . 7 Classes Destroyed 8 | . 2 4 2 Builder 3 | . 1 1 1 Hauler 2 | . . 2 . Operator 1 | . . . 1 Watcher 1 | . . 1 . Swarmer 12 | . 5 7 . Grunt 20 | . . 11 9 Duelist 1 | . . . 1 Sentry 9 | . . 7 2 Best Kill Streak 10 | . 4 8 10 Combat Bots Only 9 | . 3 8 9 Max Kills in Single Turn 3 | . 1 2 3 Gunslinging . | . . . . Exploded 3 | . . . 3 Melee . | . . . . Uniques/NPCs Destroyed . | . . . . Combat | -11 -10 -9 -8 -------- Run | Scr Mat Mat Mat Damage Taken 1999 | . 189 783 1027 Core 1568 | . 129 588 851 Absorbed by Shields . | . . . . Redirected to Core 1209 | . 109 512 588 Core Remaining (%) 96 | 100 96 92 . Volleys Fired 107 | . 15 64 28 Largest 2 | . 2 2 2 Hottest 83 | . 70 67 83 Shots Fired 207 | . 30 128 49 Gun 109 | . 30 64 15 Cannon 92 | . . 64 28 Launcher 6 | . . . 6 Special . | . . . . Kinetic 192 | . 21 128 43 Thermal 9 | . 9 . . Explosive 6 | . . . 6 Electromagnetic . | . . . . Robot Hit Streak 15 | . 4 15 12 Robot Miss Streak 5 | . 5 5 4 Penetration Max . | . . . . Secondary Targets . | . . . . Shots Hit Robots 153 | . 13 101 39 Core Hits 119 | . 7 67 45 Critical Hits . | . . . . Critical Kills . | . . . . Critical Parts Destroyed . | . . . . Melee Attacks . | . . . . Impact . | . . . . Slashing . | . . . . Piercing . | . . . . Sneak Attacks . | . . . . Combat Hostiles . | . . . . Follow-up Attacks . | . . . . Damage Inflicted 3686 | . 195 1794 1697 Guns 1186 | . 195 784 207 Cannons 1362 | . . 944 418 Explosions 1138 | . . 66 1072 Melee . | . . . . Ramming . | . . . . Kinetic 2485 | . 132 1728 625 Thermal 63 | . 63 . . Explosive 1072 | . . . 1072 Electromagnetic 66 | . . 66 . Impact . | . . . . Slashing . | . . . . Piercing . | . . . . Highest Corruption . | . . . . Average Corruption . | . . . . Corruption Purged . | . . . . Overload Shots . | . . . . Overflow Damage 38 | . . 4 34 Projectiles 4 | . . 4 . Explosions 34 | . . . 34 Melee . | . . . . Knockbacks 33 | . . 20 13 Impact . | . . . . Kinetic 31 | . . 18 13 Secondary 2 | . . 2 . Self-Inflicted Damage 78 | . . 41 37 Shots 2 | . . 1 1 Rammed . | . . . . Targets Rammed . | . . . . Kicked . | . . . . Crushed . | . . . . Highest Temperature 299 | . 144 156 299 Average Temperature 54 | . 66 41 80 Received Heat Transfer 624 | . . 246 378 Effects 1 | . . . 1 Energy Bleed 1 | . . . 1 Siege Activations . | . . . . Robots Corrupted . | . . . . Combat Hostiles . | . . . . Parts Fried . | . . . . Impact Corruptions . | . . . . Robots Melted . | . . . . Combat Hostiles . | . . . . Parts Melted 1 | . 1 . . Heat Transferred 185 | . 185 . . Parts Sabotaged . | . . . . Parts Stolen . | . . . . Parts Stripped . | . . . . Power Chain Reactions . | . . . . Missiles Intercepted . | . . . . Alert | -11 -10 -9 -8 ------- Run | Scr Mat Mat Mat Peak Influence 445 | . 125 325 445 Average Influence 110 | . 41 128 125 Maximum Alert Level 2 | . . 1 2 Low Security (%) 79 | 100 100 70 85 Level 1 20 | . . 29 12 Level 2 . | . . . 2 Level 3 . | . . . . Level 4 . | . . . . Level 5 . | . . . . High Security . | . . . . Max Security . | . . . . Squads Dispatched 7 | . . 3 4 Investigation 3 | . . 2 1 Extermination . | . . . . Reinforcement 3 | . . 1 2 Assault . | . . . . Garrison 1 | . . . 1 Intercept . | . . . . Construction Impeded 1 | . . . 1 Haulers Reinforced . | . . . . Stealth | -11 -10 -9 -8 --------- Run | Scr Mat Mat Mat Distress Signals 2 | . . 1 1 Communications Jammed . | . . . . Distress Signals . | . . . . Times Spotted 57 | . 9 31 17 Peak Tracking Total 9 | . 6 7 9 Tactical Retreats 1 | . . 1 . Traps | -11 -10 -9 -8 ------- Run | Scr Mat Mat Mat Traps Triggered 1 | . . 1 . Indirectly . | . . . . Trap Hack Attempts . | . . . . Triggered . | . . . . Disarmed . | . . . . Reprogrammed . | . . . . Reused . | . . . . Traps Extracted . | . . . . Installed . | . . . . Triggered . | . . . . Machines | -11 -10 -9 -8 ---------- Run | Scr Mat Mat Mat Machines Disabled 1 | . . 1 . Max in Single Turn 1 | . . 1 . Machines Sabotaged . | . . . . Garrisons Compromised . | . . . . Overloaded Fab Kills . | . . . . Fab Network Shutdowns . | . . . . Hacking | -11 -10 -9 -8 --------- Run | Scr Mat Mat Mat Machines Accessed 8 | . 1 5 2 Terminals 7 | . 1 4 2 Fabricators . | . . . . Repair Stations . | . . . . Recycling Units . | . . . . Scanalyzers 1 | . . 1 . Garrison Access . | . . . . Total Hacks 31 | . 3 15 13 Successful 21 | . 2 11 8 Failed 9 | . 1 4 4 Catastrophic 1 | . . . 1 Database Lockouts 2 | . . . 2 Manual 21 | . 3 7 11 Terminals 30 | . 3 14 13 Fabricators . | . . . . Repair Stations . | . . . . Recycling Units . | . . . . Scanalyzers 1 | . . 1 . Garrison Access . | . . . . Terminal Hacks 10 | . 1 5 4 Robot Schematic 1 | . . . 1 Prototype ID Bank 2 | . . . 2 Branch Access Points 1 | . . 1 . Terminal Index 1 | . . . 1 Unreport Threat 5 | . 1 4 . Fabricator Hacks . | . . . . Repair Station Hacks . | . . . . Recycling Unit Hacks . | . . . . Scanalyzer . | . . . . Garrison Access Hacks . | . . . . Unauthorized Hacks 11 | . 1 6 4 Terminals 10 | . 1 5 4 Track 3 | . . 1 2 Botnet 7 | . 1 4 2 Fabricators . | . . . . Repair Stations . | . . . . Recycling Units . | . . . . Scanalyzers 1 | . . 1 . Extract 1 | . . 1 . Garrison Access . | . . . . Data Cores Recovered . | . . . . Used . | . . . . Hacking Detections 5 | . 1 3 1 Full Trace Events . | . . . . Feedback Events . | . . . . Feedback Blocked . | . . . . Robot Schematics Acquired 1 | . . . 1 Robots Built . | . . . . Matter . | . . . . Time . | . . . . Total Robot Build Rating . | . . . . Part Schematics Acquired 7 | . . 7 . Parts Built . | . . . . Matter . | . . . . Time . | . . . . Total Part Build Rating . | . . . . Parts Repaired . | . . . . Time . | . . . . Parts Recycled . | . . . . Recycled Matter . | . . . . Retrieved Matter . | . . . . Retrieved Components . | . . . . Parts Scanalyzed . | . . . . Part Schematics Acquired . | . . . . Parts Damaged . | . . . . Bothacking | -11 -10 -9 -8 ------------ Run | Scr Mat Mat Mat Used RIF Installer . | . . . . Robots Hacked . | . . . . Non-combat . | . . . . Combat . | . . . . Robot Hacks Applied . | . . . . Relay Couplers Released . | . . . . Robots Rewired . | . . . . Allies Hacked . | . . . . Hacks Repelled . | . . . . Allies | -11 -10 -9 -8 -------- Run | Scr Mat Mat Mat Total Allies . | . . . . Largest Group . | . . . . Highest-Rated Group . | . . . . Highest-Rated Ally . | . . . . Total Orders . | . . . . Ally Attacks . | . . . . Total Damage . | . . . . Kills . | . . . . Allies Corrupted . | . . . . Allies Melted . | . . . . Intel | -11 -10 -9 -8 ------- Run | Scr Mat Mat Mat Robot Analysis Total . | . . . . Derelict Logs Recovered . | . . . . Drone Launches . | . . . . Drone Recoveries . | . . . . Exploration | -11 -10 -9 -8 ------------- Run | Scr Mat Mat Mat Turns Passed 1279 | 41 195 803 240 Spaces Moved 783 | 39 171 397 176 Core 2 | 2 . . . Treads 1 | 1 . . . Legs . | . . . . Wheels 780 | 36 171 397 176 Hover . | . . . . Flight . | . . . . Fastest Speed 50 | 50 80 80 80 Average Speed 80 | 80 80 80 80 Slowest Speed 160 | 160 80 80 80 Overloaded Moves . | . . . . Propulsion Burnouts . | . . . . Robots Hopped . | . . . . Cave-ins Triggered . | . . . . Exploration Rate (%) 26 | 3 37 45 22 Regions Visited 3 Branch Regions . Pre-discovered Areas . | . . . . Known Exits Taken 1 | . . 1 . Unknown Exits Taken 2 | 1 1 . . Scrap Searched . | . . . . Spaces Dug . | . . . . Terrain Destroyed 80 | . . . 80 Melee . | . . . . Projectile . | . . . . AOE 80 | . . . 80 Actions | -11 -10 -9 -8 --------- Run | Scr Mat Mat Mat Total 1223 | 45 198 754 226 Wait 254 | . 2 239 13 Move 780 | 38 170 396 176 Hop . | . . . . Pick Up 6 | . . 6 . Fast Attach 15 | 6 3 3 3 Attach 1 | . . 1 . Detach . | . . . . Swap 5 | . 1 4 . Drop 12 | 1 2 6 3 Fire 107 | . 15 64 28 Melee . | . . . . Ram . | . . . . Kick . | . . . . Crush . | . . . . Escape Stasis . | . . . . Rewire . | . . . . Trap . | . . . . Miscellaneous 43 | . 5 35 3 Route ------- -11/Scrapyard -10/Materials -9/Materials (discovered 2 exits: *Mat / *Min) -8/Materials History --------- Turn | Location | Event 1 | -11/Scrapyard | Upgraded with Propulsion slot (x1) 1 | -11/Scrapyard | Upgraded with Utility slot (x1) 1 | -11/Scrapyard | Upgraded with Weapon slot (x1) 5 | -11/Scrapyard | Discovered new exit (range 16) 42 | -11/Scrapyard | Entered Materials 224 | -10/Materials | Discovered new exit (range 12) 237 | -10/Materials | Entered another Materials area 239 | -9/Materials | Reached level 2 315 | -9/Materials | Build established: Mutant 322 | -9/Materials | Identified exit to Mines 357 | -9/Materials | Reached level 3 378 | -9/Materials | Upgraded with Utility slot (x1) 641 | -9/Materials | Reached level 4 668 | -9/Materials | Destroyed 8 combat bots 960 | -9/Materials | Discovered new exit (range 8) 1040 | -9/Materials | Identified exit to Materials 1040 | -9/Materials | Entered another Materials area 1042 | -8/Materials | Reached level 5 1082 | -8/Materials | Central database locked down 1216 | -8/Materials | Reached level 6 1249 | -8/Materials | Garrison activated, responded to threat 1258 | -8/Materials | Core integrity fell below 50% 1274 | -8/Materials | Core integrity fell below 20% 1280 | -8/Materials | Destroyed by Y-45 Defender with Heavy Assault Rifle Last Messages --------------- 01265_ L-31 Rogue knocked back. 01265_ L-31 Rogue destroyed. 01267_ Slug penetrates Wall. 01267_ G-47 Trooper knocked back. 01268_ R-06 Scavenger collects Imp. Ion Engine. 01270_ Acquired 36 matter. 01271_ U-05 Engineer builds a Wall. 01272_ K-01 Serf collects debris. 01272_ G-47 Trooper knocked back. 01272_ U-05 Engineer destroyed. 01273_ The unstable cave ceiling collapses. 01273_ R-06 Scavenger collects Lgt. Treads. 01275_ G-47 Trooper knocked back. 01275_ G-47 Trooper destroyed. 01276_ The unstable cave ceiling collapses. 01277_ R-06 Scavenger collects Imp. Ion Engine. 01278_ Overheating: Energy bleed (-43). 01278_ Destroyed Com. Wheel. 01279_ Slug penetrates Wall. 01280_ The unstable cave ceiling collapses. Map ----- +----------------------------------------------------+ | ?????????????????????????????????????????????????? | | ###############??????????????????????????????????? | | g ??????????????????????????????????? | | ^ ?????????????????????????????????? | | T ??????????????????????????????????? | | #####?????????????????????????????????????? | | ^ #?????????????????????????????????????????? | | !! #?????????????????????????????????????????? | | !! #?????????????????????????????????????????? | | ! #?????????????????????????????????????????? | | +?????????????????????????????????????????? | | #???????????????????? ????????????????????? | | +### #???????????????????? ????????????????????? | | *# #???????????????????? ????????????????????? | | " # #????????????######?? ????????????????????? | | " # #?????????### ?? #???????????????????? | | " |# #?????#?### # " #? #???????????????????? | | # #?????# # "G" ? #???????????????????? | | #### #????? " " !## #???????????????????? | | ???# #????## #a#???????????????????? | | ??## ##???# [k # #???????????????????? | | ??# ### # # =% #???????????????????? | | # !% h = %! #???????????????????? | | = %!Y= Yr #???????????????????? | | # # %%[%= #???????????????????? | | #?# ## =* @ #???????????????????? | | ??## ##????????# ## #???????????????????? | | ???# #????????????###]]]] ]#???????????????????? | | ???# #??????????????#]]]]]]#???????????????????? | | ???# +??????????????########???????????????????? | | ???# #?????????????????????????????????????????? | | ???# #?????????????????????????????????????????? | | ???# #?????????????????????????????????????????? | | ???# "#?????????????????????????????????????????? | | ???# %#?????????????????????????????????????????? | | ???# #?????????????????????????????????????????? | | ???# #?????????????????????????????????????????? | | ???# ??????????????????????????????????????????? | | ???? ??????????????????????????????????????????? | | ?????????????????????????????????????????????????? | | ?????????????????????????????????????????????????? | | ?????????????????????????????????????????????????? | | ?????????????????????????????????????????????????? | | ?????????????????????????????????????????????????? | | ?????????????????????????????????????????????????? | | ?????????????????????????????????????????????????? | | ?????????????????????????????????????????????????? | | ?????????????????????????????????????????????????? | | ?????????????????????????????????????????????????? | | ?????????????????????????????????????????????????? | +----------------------------------------------------+ Best States ------------- Heat Dissipation 25 Energy Generation 14 Energy Capacity 240 Matter Stores 500 Matter Capacity 500 Sight Range 16 Robot Scan Range 13 Terrain Scan Density 10 Armor Coverage 150 Resistance: KI 10 Resistance: TH 10 Resistance: EX 5 Evasion (%) 44 Targeting Accuracy 12 Offensive Hacking 25 Item Schematics ----------------- Heat Shielding | -9/Materials | Extracted Beam Rifle | -9/Materials | Extracted Hvy. Hammer | -9/Materials | Extracted Particle Cannon | -9/Materials | Extracted Mining Laser | -9/Materials | Extracted Hrd. Light Armor Plating | -9/Materials | Extracted Salvage Targeting Computer | -9/Materials | Extracted Robot Schematics ------------------ G-47 Trooper | -8/Materials | Hacked Fabricated ------------ Nothing Alien Tech Used ----------------- None Achievements -------------- None Challenges ------------ None RPGLIKE | -11 -10 -9 -8 --------- Run | Scr Mat Mat Mat Levels Raised 5 | . . 3 2 XP Earned 11650 | 3000 600 5040 3010 XP Spent 10225 | 2975 . 4250 3000 Upgrades 30 | 10 . 14 6 Propulsion Slot 1 | 1 . . . Utility Slot 2 | 1 . 1 . Weapon Slot 1 | 1 . . . Core Integrity 5 | . . 5 . Matter Storage 4 | 2 . 2 . Inventory Capacity 3 | . . 3 . Ranged Accuracy 1 | . . 1 . Hack Attack % 3 | 2 . 1 . KI Resistance % 2 | 1 . . 1 TH Resistance % 2 | 1 . . 1 EX Resistance % 1 | 1 . . . KI Damage % 2 | . . 1 1 EX Damage % 3 | . . . 3 Protomatter Created 439 | . 36 335 68 Integrity Restored 852 | . 108 684 60 Core 712 | . 108 544 60 Parts 140 | . . 140 . Protomatter Decayed 76 | . . 76 . Game ------ Seed CouplerIntegrityTreads Manual? 0 Play Time 00:25:13 Cumulative 63.0 hours Start 2020.07.31 @ 03:05:37 End 2020.07.31 @ 03:28:39 Sessions 1 Manual Loads 0 Difficulty Rogue Special Mode Winter2019/RPGLIKE Game No. 92 Rogue 92 Adventurer 0 Explorer 0 Win Type - Total 0 Types 0/0/0/0/0/0/0 Lore% 35 Gallery% 44 Achievement% 35 Wizard Run 0 Options --------- ASCII 0 Keyboard 0 Movement Mouse Keybinds 0 Fullscreen 2 Font 18/X11 Map View 76x50 Tactical HUD 1 Map Filters NONE Filters NONE Steam 1 RUN: 73ef05ed-518a-4855-a0cd-f84edde7e262